[Event "Titled Tuesday Blitz February 21 Early 2023"]
[White "Turzo, Attila"]
[Black "Better_Chess_Faster"]
[WhiteFideId "704954"]
[WhiteElo "2279"]
[BlackElo "1968"]
[Result "1-0"]
[Round "01"]
[TimeControl "180+2"]
[Date "2023.02.21"]
[WhiteClock "0:00:21"]
[BlackClock "0:00:12"]

1. d4 {[%clk 0:02:59]}  f5 {[%clk 0:02:58]} 2. g3 {[%clk 0:02:56]}  Nf6 {[%clk 0:02:57]} 3. Bg2 {[%clk 0:02:57]}  d5 {[%clk 0:02:57]} 4. Nf3 {[%clk 0:02:57]}  e6 {[%clk 0:02:57]} 5. O-O {[%clk 0:02:58]}  Bd6 {[%clk 0:02:56]} 6. c4 {[%clk 0:02:56]}  O-O {[%clk 0:02:55]} 7. Nc3 {[%clk 0:02:57]}  c6 {[%clk 0:02:54]} 8. Bg5 {[%clk 0:02:54]}  Nbd7 {[%clk 0:02:52]} 9. Rc1 {[%clk 0:02:43]}  h6 {[%clk 0:02:51]} 10. Bf4 {[%clk 0:02:41]}  Bxf4 {[%clk 0:02:48]} 11. gxf4 {[%clk 0:02:42]}  Ne4 {[%clk 0:02:47]} 12. c5 {[%clk 0:02:37]}  g5 {[%clk 0:02:38]} 13. fxg5 {[%clk 0:02:22]}  hxg5 {[%clk 0:02:38]} 14. Ne1 {[%clk 0:02:14]}  Qf6 {[%clk 0:02:29]} 15. Nxe4 {[%clk 0:02:07]}  fxe4 {[%clk 0:02:27]} 16. f3 {[%clk 0:01:59]}  e3 {[%clk 0:02:27]} 17. Qd3 {[%clk 0:01:51]}  e5 {[%clk 0:02:26]} 18. dxe5 {[%clk 0:01:44]}  Qxe5 {[%clk 0:02:21]} 19. b4 {[%clk 0:01:41]}  Nf6 {[%clk 0:02:17]} 20. Nc2 {[%clk 0:01:36]}  Bf5 {[%clk 0:02:16]} 21. Qxe3 {[%clk 0:01:36]}  Rae8 {[%clk 0:02:13]} 22. Qxg5+ {[%clk 0:01:36]}  Kf7 {[%clk 0:02:14]} 23. e4 {[%clk 0:01:25]}  Bh7 {[%clk 0:01:34]} 24. Qxe5 {[%clk 0:01:19]}  Rxe5 {[%clk 0:01:32]} 25. f4 {[%clk 0:01:20]}  Rxe4 {[%clk 0:01:29]} 26. Bxe4 {[%clk 0:01:19]}  Bxe4 {[%clk 0:01:28]} 27. Kf2 {[%clk 0:01:14]}  Rh8 {[%clk 0:01:26]} 28. Ke1 {[%clk 0:00:58]}  Rxh2 {[%clk 0:01:21]} 29. Rf2 {[%clk 0:00:58]}  Rh1+ {[%clk 0:01:15]} 30. Kd2 {[%clk 0:00:58]}  Rh4 {[%clk 0:01:09]} 31. Nd4 {[%clk 0:00:47]}  Bh1 {[%clk 0:01:01]} 32. Re2 {[%clk 0:00:39]}  Ne4+ {[%clk 0:00:53]} 33. Kc2 {[%clk 0:00:39]}  Ng3 {[%clk 0:00:49]} 34. Re3 {[%clk 0:00:38]}  Rh2+ {[%clk 0:00:47]} 35. Kb3 {[%clk 0:00:37]}  Ne4 {[%clk 0:00:46]} 36. Rc2 {[%clk 0:00:35]}  Rh4 {[%clk 0:00:44]} 37. f5 {[%clk 0:00:35]}  Nf6 {[%clk 0:00:42]} 38. Ne6 {[%clk 0:00:30]}  Be4 {[%clk 0:00:39]} 39. Rd2 {[%clk 0:00:28]}  Bxf5 {[%clk 0:00:37]} 40. Nd4 {[%clk 0:00:26]}  Ne4 {[%clk 0:00:36]} 41. Rd1 {[%clk 0:00:24]}  Bg6 {[%clk 0:00:32]} 42. Rf1+ {[%clk 0:00:20]}  Kg7 {[%clk 0:00:33]} 43. Rg1 {[%clk 0:00:19]}  Kh7 {[%clk 0:00:33]} 44. Ree1 {[%clk 0:00:18]}  Rh3+ {[%clk 0:00:32]} 45. Kb2 {[%clk 0:00:17]}  Rh2+ {[%clk 0:00:31]} 46. Ka1 {[%clk 0:00:13]}  Nc3 {[%clk 0:00:29]} 47. Rh1 {[%clk 0:00:13]}  Rxh1 {[%clk 0:00:24]} 48. Rxh1+ {[%clk 0:00:14]}  Kg7 {[%clk 0:00:25]} 49. Kb2 {[%clk 0:00:15]}  Ne4 {[%clk 0:00:21]} 50. Rg1 {[%clk 0:00:15]}  Kf6 {[%clk 0:00:20]} 51. a3 {[%clk 0:00:15]}  Bf7 {[%clk 0:00:16]} 52. Rf1+ {[%clk 0:00:16]}  Ke7 {[%clk 0:00:15]} 53. Nf3 {[%clk 0:00:16]}  Be6 {[%clk 0:00:13]} 54. Ne5 {[%clk 0:00:15]}  Bd7 {[%clk 0:00:11]} 55. Rf7+ {[%clk 0:00:14]}  Ke8 {[%clk 0:00:12]} 56. Rxd7 {[%clk 0:00:14]}  b6 {[%clk 0:00:12]} 57. Rxa7 {[%clk 0:00:13]}  bxc5 {[%clk 0:00:11]} 58. Nxc6 {[%clk 0:00:14]}  c4 {[%clk 0:00:10]} 59. Re7+ {[%clk 0:00:12]}  Kf8 {[%clk 0:00:09]} 60. Rxe4 {[%clk 0:00:13]}  dxe4 {[%clk 0:00:09]} 61. Kc3 {[%clk 0:00:13]}  e3 {[%clk 0:00:08]} 62. Nd4 {[%clk 0:00:14]}  Ke7 {[%clk 0:00:07]} 63. Ne2 {[%clk 0:00:15]}  Kd6 {[%clk 0:00:08]} 64. Kxc4 {[%clk 0:00:16]}  Ke5 {[%clk 0:00:08]} 65. b5 {[%clk 0:00:16]}  Kd6 {[%clk 0:00:09]} 66. a4 {[%clk 0:00:16]}  Kc7 {[%clk 0:00:10]} 67. a5 {[%clk 0:00:17]}  Kb7 {[%clk 0:00:09]} 68. Kd3 {[%clk 0:00:17]}  Kc7 {[%clk 0:00:09]} 69. Kxe3 {[%clk 0:00:18]}  Kd6 {[%clk 0:00:10]} 70. Kd4 {[%clk 0:00:19]}  Kc7 {[%clk 0:00:10]} 71. Kc4 {[%clk 0:00:20]}  Kb7 {[%clk 0:00:10]} 72. Kc5 {[%clk 0:00:21]}  Ka7 {[%clk 0:00:11]} 73. b6+ {[%clk 0:00:21]}  Kb7 {[%clk 0:00:12]} 74. Kb5 {[%clk 0:00:21]}  Kb8 {[%clk 0:00:11]} 75. Nd4 {[%clk 0:00:21]}  Kc8 {[%clk 0:00:12]} 76. a6 {[%clk 0:00:21]} 1-0


[Site "https://www.chess.com"]

[Event "Titled Tuesday Blitz February 21 Early 2023"]
[White "Dias, Joao Batista"]
[Black "Ehlvest, Jaan"]
[WhiteFideId "2108240"]
[BlackFideId "4500016"]
[WhiteElo "1796"]
[BlackElo "2530"]
[Result "0-1"]
[Round "01"]
[TimeControl "180+2"]
[Date "2023.02.21"]
[WhiteClock "0:00:15"]
[BlackClock "0:00:49"]

1. e4 {[%clk 0:02:51]}  c5 {[%clk 0:02:58]} 2. Nf3 {[%clk 0:02:49]}  e6 {[%clk 0:02:58]} 3. d4 {[%clk 0:02:44]}  cxd4 {[%clk 0:02:59]} 4. Nxd4 {[%clk 0:02:43]}  Nf6 {[%clk 0:02:59]} 5. Nc3 {[%clk 0:02:42]}  d6 {[%clk 0:02:59]} 6. Be3 {[%clk 0:02:42]}  a6 {[%clk 0:02:57]} 7. Qd2 {[%clk 0:02:42]}  b5 {[%clk 0:02:57]} 8. f3 {[%clk 0:02:42]}  Nbd7 {[%clk 0:02:56]} 9. O-O-O {[%clk 0:02:42]}  Bb7 {[%clk 0:02:54]} 10. Kb1 {[%clk 0:02:41]}  Rc8 {[%clk 0:02:49]} 11. g4 {[%clk 0:02:40]}  Nb6 {[%clk 0:02:48]} 12. h4 {[%clk 0:02:38]}  Nfd7 {[%clk 0:02:45]} 13. h5 {[%clk 0:02:33]}  h6 {[%clk 0:02:43]} 14. g5 {[%clk 0:02:29]}  hxg5 {[%clk 0:02:42]} 15. Bxg5 {[%clk 0:02:29]}  Qc7 {[%clk 0:02:42]} 16. Be2 {[%clk 0:02:18]}  b4 {[%clk 0:02:32]} 17. Ncb5 {[%clk 0:02:02]}  axb5 {[%clk 0:02:32]} 18. Nxb5 {[%clk 0:02:02]}  Qb8 {[%clk 0:02:32]} 19. Qxb4 {[%clk 0:01:47]}  d5 {[%clk 0:02:29]} 20. Qd4 {[%clk 0:01:39]}  Bc6 {[%clk 0:02:07]} 21. h6 {[%clk 0:01:37]}  e5 {[%clk 0:02:02]} 22. hxg7 {[%clk 0:01:15]}  Bxg7 {[%clk 0:01:51]} 23. Rxh8+ {[%clk 0:01:13]}  Bxh8 {[%clk 0:01:50]} 24. Qb4 {[%clk 0:01:09]}  f6 {[%clk 0:01:39]} 25. Nd6+ {[%clk 0:01:01]}  Kd8 {[%clk 0:01:39]} 26. Nf7+ {[%clk 0:00:53]}  Kc7 {[%clk 0:01:36]} 27. exd5 {[%clk 0:00:41]}  Nxd5 {[%clk 0:01:30]} 28. Qd6+ {[%clk 0:00:40]}  Kb7 {[%clk 0:01:29]} 29. Rxd5 {[%clk 0:00:36]}  fxg5 {[%clk 0:01:23]} 30. Rd3 {[%clk 0:00:31]}  Nb6 {[%clk 0:01:15]} 31. Qb4 {[%clk 0:00:26]}  Rf8 {[%clk 0:01:10]} 32. Nd6+ {[%clk 0:00:26]}  Kc7 {[%clk 0:01:09]} 33. Rc3 {[%clk 0:00:25]}  e4 {[%clk 0:01:06]} 34. Nxe4 {[%clk 0:00:24]}  Bxc3 {[%clk 0:01:04]} 35. Nxc3 {[%clk 0:00:22]}  Qd8 {[%clk 0:01:00]} 36. Nb5+ {[%clk 0:00:21]}  Bxb5 {[%clk 0:00:56]} 37. Qxb5 {[%clk 0:00:22]}  Qd5 {[%clk 0:00:52]} 38. Qa6 {[%clk 0:00:19]}  g4 {[%clk 0:00:50]} 39. b3 {[%clk 0:00:19]}  gxf3 {[%clk 0:00:49]} 40. Qa7+ {[%clk 0:00:19]}  Qb7 {[%clk 0:00:49]} 41. Qxb7+ {[%clk 0:00:15]}  Kxb7 {[%clk 0:00:49]} 0-1


[Site "https://www.chess.com"]

[Event "Titled Tuesday Blitz February 21 Early 2023"]
[White "Nihal Sarin"]
[Black "Karthik Rajaa"]
[WhiteFideId "25092340"]
[BlackFideId "25035215"]
[WhiteElo "2673"]
[BlackElo "2276"]
[Result "0-1"]
[Round "02"]
[TimeControl "180+2"]
[Date "2023.02.21"]
[WhiteClock "0:00:05"]
[BlackClock "0:00:16"]

1. Nf3 {[%clk 0:03:00]}  Nf6 {[%clk 0:02:59]} 2. b3 {[%clk 0:03:01]}  g6 {[%clk 0:02:59]} 3. Bb2 {[%clk 0:03:02]}  Bg7 {[%clk 0:02:59]} 4. e3 {[%clk 0:03:03]}  O-O {[%clk 0:02:59]} 5. d4 {[%clk 0:03:04]}  d6 {[%clk 0:03:00]} 6. Be2 {[%clk 0:03:04]}  e5 {[%clk 0:02:58]} 7. dxe5 {[%clk 0:03:03]}  Nfd7 {[%clk 0:02:59]} 8. c4 {[%clk 0:03:02]}  Nc6 {[%clk 0:02:59]} 9. O-O {[%clk 0:03:02]}  dxe5 {[%clk 0:02:59]} 10. Nc3 {[%clk 0:03:02]}  Nc5 {[%clk 0:02:32]} 11. Nd5 {[%clk 0:02:53]}  e4 {[%clk 0:02:27]} 12. Nd4 {[%clk 0:02:31]}  Ne5 {[%clk 0:02:26]} 13. Ba3 {[%clk 0:02:28]}  b6 {[%clk 0:02:25]} 14. Qc2 {[%clk 0:02:00]}  Re8 {[%clk 0:02:08]} 15. Rad1 {[%clk 0:01:49]}  c6 {[%clk 0:01:55]} 16. Nc3 {[%clk 0:01:50]}  Qh4 {[%clk 0:01:40]} 17. b4 {[%clk 0:01:35]}  Ncd3 {[%clk 0:01:32]} 18. Nxe4 {[%clk 0:01:35]}  Qxe4 {[%clk 0:01:27]} 19. Bxd3 {[%clk 0:01:33]}  Nxd3 {[%clk 0:01:25]} 20. Qxd3 {[%clk 0:01:34]}  Qxd3 {[%clk 0:00:56]} 21. Rxd3 {[%clk 0:01:35]}  Bb7 {[%clk 0:00:56]} 22. Rfd1 {[%clk 0:01:31]}  Bf8 {[%clk 0:00:48]} 23. b5 {[%clk 0:01:14]}  c5 {[%clk 0:00:41]} 24. Nf3 {[%clk 0:01:09]}  Bc8 {[%clk 0:00:39]} 25. Bb2 {[%clk 0:01:05]}  Be6 {[%clk 0:00:37]} 26. Nd2 {[%clk 0:00:55]}  Red8 {[%clk 0:00:27]} 27. Ne4 {[%clk 0:00:54]}  Rxd3 {[%clk 0:00:25]} 28. Rxd3 {[%clk 0:00:54]}  Be7 {[%clk 0:00:26]} 29. Nd2 {[%clk 0:00:49]}  f6 {[%clk 0:00:25]} 30. Kf1 {[%clk 0:00:43]}  a6 {[%clk 0:00:24]} 31. Ra3 {[%clk 0:00:36]}  a5 {[%clk 0:00:18]} 32. Rd3 {[%clk 0:00:32]}  a4 {[%clk 0:00:19]} 33. Ke2 {[%clk 0:00:29]}  Kf7 {[%clk 0:00:19]} 34. a3 {[%clk 0:00:26]}  Bd8 {[%clk 0:00:19]} 35. e4 {[%clk 0:00:20]}  Bc7 {[%clk 0:00:18]} 36. g3 {[%clk 0:00:21]}  g5 {[%clk 0:00:18]} 37. Rf3 {[%clk 0:00:21]}  Bg4 {[%clk 0:00:18]} 38. Ke3 {[%clk 0:00:18]}  Bxf3 {[%clk 0:00:18]} 39. Nxf3 {[%clk 0:00:19]}  Rd8 {[%clk 0:00:18]} 40. h3 {[%clk 0:00:17]}  h6 {[%clk 0:00:18]} 41. Bc3 {[%clk 0:00:16]}  Ke6 {[%clk 0:00:18]} 42. Bb2 {[%clk 0:00:12]}  Rd1 {[%clk 0:00:18]} 43. Nd2 {[%clk 0:00:09]}  Rh1 {[%clk 0:00:18]} 44. Ke2 {[%clk 0:00:06]}  Rxh3 {[%clk 0:00:17]} 45. Nb1 {[%clk 0:00:07]}  Rh1 {[%clk 0:00:17]} 46. Nc3 {[%clk 0:00:07]}  h5 {[%clk 0:00:16]} 47. Nxa4 {[%clk 0:00:07]}  h4 {[%clk 0:00:16]} 48. gxh4 {[%clk 0:00:07]}  gxh4 {[%clk 0:00:17]} 49. Kf3 {[%clk 0:00:07]}  h3 {[%clk 0:00:18]} 50. e5 {[%clk 0:00:08]}  fxe5 {[%clk 0:00:16]} 51. Nc3 {[%clk 0:00:08]}  e4+ {[%clk 0:00:17]} 52. Nxe4 {[%clk 0:00:09]}  h2 {[%clk 0:00:17]} 53. Ng3 {[%clk 0:00:05]}  Rb1 {[%clk 0:00:16]} 0-1


[Site "https://www.chess.com"]

[Event "Titled Tuesday Blitz February 21 Early 2023"]
[White "Caruana, Fabiano"]
[Black "Arabidze, Meri"]
[WhiteFideId "2020009"]
[BlackFideId "13604040"]
[WhiteElo "2764"]
[BlackElo "2441"]
[Result "1-0"]
[Round "02"]
[TimeControl "180+2"]
[Date "2023.02.21"]
[WhiteClock "0:02:39"]
[BlackClock "0:00:25"]

1. e4 {[%clk 0:03:00]}  c5 {[%clk 0:02:57]} 2. Nf3 {[%clk 0:03:00]}  e6 {[%clk 0:02:57]} 3. c3 {[%clk 0:03:00]}  d5 {[%clk 0:02:56]} 4. e5 {[%clk 0:02:59]}  d4 {[%clk 0:02:53]} 5. Bd3 {[%clk 0:02:59]}  Ne7 {[%clk 0:02:48]} 6. O-O {[%clk 0:02:58]}  Nbc6 {[%clk 0:02:47]} 7. Be4 {[%clk 0:02:57]}  Bd7 {[%clk 0:02:41]} 8. d3 {[%clk 0:02:57]}  Ng6 {[%clk 0:02:37]} 9. Re1 {[%clk 0:02:56]}  Qc7 {[%clk 0:02:35]} 10. Na3 {[%clk 0:02:48]}  Ncxe5 {[%clk 0:02:15]} 11. Nxe5 {[%clk 0:02:47]}  Nxe5 {[%clk 0:02:15]} 12. Bf4 {[%clk 0:02:46]}  Bd6 {[%clk 0:02:01]} 13. cxd4 {[%clk 0:02:44]}  Nf3+ {[%clk 0:01:35]} 14. Qxf3 {[%clk 0:02:44]}  Bxf4 {[%clk 0:01:36]} 15. dxc5 {[%clk 0:02:40]}  Bxh2+ {[%clk 0:00:52]} 16. Kh1 {[%clk 0:02:40]}  Be5 {[%clk 0:00:43]} 17. Nc4 {[%clk 0:02:39]}  Bd4 {[%clk 0:00:25]} 18. Nd6+ {[%clk 0:02:39]} 1-0


[Site "https://www.chess.com"]

[Event "Titled Tuesday Blitz February 21 Early 2023"]
[White "Sarana, Alexey"]
[Black "Volkov, Maksim"]
[WhiteFideId "24133795"]
[BlackFideId "54123070"]
[WhiteElo "2685"]
[BlackElo "2258"]
[Result "1-0"]
[Round "02"]
[TimeControl "180+2"]
[Date "2023.02.21"]
[WhiteClock "0:01:42"]
[BlackClock "0:00:42"]

1. d4 {[%clk 0:02:23]}  d5 {[%clk 0:02:59]} 2. c4 {[%clk 0:02:24]}  e6 {[%clk 0:03:00]} 3. Nf3 {[%clk 0:02:23]}  Nf6 {[%clk 0:03:00]} 4. Nc3 {[%clk 0:02:24]}  c6 {[%clk 0:02:58]} 5. e3 {[%clk 0:02:21]}  Nbd7 {[%clk 0:02:58]} 6. Bd3 {[%clk 0:02:20]}  dxc4 {[%clk 0:02:58]} 7. Bxc4 {[%clk 0:02:21]}  b5 {[%clk 0:02:58]} 8. Bd3 {[%clk 0:02:21]}  Bd6 {[%clk 0:02:58]} 9. O-O {[%clk 0:02:19]}  O-O {[%clk 0:02:58]} 10. Qc2 {[%clk 0:02:15]}  Bb7 {[%clk 0:02:58]} 11. e4 {[%clk 0:02:15]}  e5 {[%clk 0:02:58]} 12. Bg5 {[%clk 0:02:16]}  Rc8 {[%clk 0:02:30]} 13. dxe5 {[%clk 0:02:09]}  Nxe5 {[%clk 0:02:28]} 14. Nxe5 {[%clk 0:02:09]}  Bxe5 {[%clk 0:02:28]} 15. f4 {[%clk 0:02:10]}  Bd4+ {[%clk 0:02:28]} 16. Kh1 {[%clk 0:02:10]}  h6 {[%clk 0:02:25]} 17. Bh4 {[%clk 0:02:10]}  Qb6 {[%clk 0:02:12]} 18. e5 {[%clk 0:02:08]}  Ng4 {[%clk 0:02:10]} 19. Qe2 {[%clk 0:02:03]}  Ne3 {[%clk 0:02:07]} 20. Rf3 {[%clk 0:02:04]}  c5 {[%clk 0:02:05]} 21. Rxe3 {[%clk 0:02:01]}  Bxe3 {[%clk 0:01:40]} 22. Qxe3 {[%clk 0:02:01]}  c4 {[%clk 0:01:39]} 23. Qxb6 {[%clk 0:02:00]}  axb6 {[%clk 0:01:33]} 24. Bf5 {[%clk 0:02:01]}  Rc5 {[%clk 0:01:19]} 25. Be7 {[%clk 0:01:58]}  b4 {[%clk 0:01:11]} 26. Na4 {[%clk 0:01:55]}  Rb5 {[%clk 0:00:47]} 27. Bxf8 {[%clk 0:01:46]}  Kxf8 {[%clk 0:00:48]} 28. Rd1 {[%clk 0:01:47]}  Bc6 {[%clk 0:00:42]} 29. Rd6 {[%clk 0:01:42]} 1-0


[Site "https://www.chess.com"]

[Event "Titled Tuesday Blitz February 21 Early 2023"]
[White "Goroshkov, Maksym"]
[Black "Le, Tuan Minh"]
[WhiteFideId "14142716"]
[BlackFideId "12401153"]
[WhiteElo "2287"]
[BlackElo "2542"]
[Result "0-1"]
[Round "02"]
[TimeControl "180+2"]
[Date "2023.02.21"]
[WhiteClock "0:00:47"]
[BlackClock "0:01:37"]

1. e4 {[%clk 0:02:56]}  c5 {[%clk 0:02:59]} 2. c3 {[%clk 0:02:55]}  Nf6 {[%clk 0:02:59]} 3. e5 {[%clk 0:02:56]}  Nd5 {[%clk 0:03:00]} 4. Bc4 {[%clk 0:02:57]}  Nb6 {[%clk 0:03:00]} 5. Bb3 {[%clk 0:02:58]}  Nc6 {[%clk 0:03:00]} 6. d4 {[%clk 0:02:56]}  cxd4 {[%clk 0:02:59]} 7. cxd4 {[%clk 0:02:57]}  d5 {[%clk 0:02:59]} 8. exd6 {[%clk 0:02:57]}  Qxd6 {[%clk 0:02:59]} 9. Nf3 {[%clk 0:02:57]}  Be6 {[%clk 0:02:59]} 10. O-O {[%clk 0:02:57]}  Bxb3 {[%clk 0:02:55]} 11. Qxb3 {[%clk 0:02:54]}  e6 {[%clk 0:02:55]} 12. Be3 {[%clk 0:02:53]}  Be7 {[%clk 0:02:53]} 13. Nc3 {[%clk 0:02:53]}  O-O {[%clk 0:02:53]} 14. Rad1 {[%clk 0:02:48]}  Rfd8 {[%clk 0:02:51]} 15. d5 {[%clk 0:02:41]}  Nxd5 {[%clk 0:02:48]} 16. Qxb7 {[%clk 0:02:38]}  Na5 {[%clk 0:02:31]} 17. Qb5 {[%clk 0:02:35]}  Nxc3 {[%clk 0:02:31]} 18. bxc3 {[%clk 0:02:17]}  Qxd1 {[%clk 0:02:30]} 19. Nd4 {[%clk 0:02:17]}  Rab8 {[%clk 0:01:58]} 20. Qxa5 {[%clk 0:01:44]}  Rb1 {[%clk 0:01:56]} 21. Qa6 {[%clk 0:01:34]}  e5 {[%clk 0:01:44]} 22. Nf3 {[%clk 0:01:03]}  Qxf1+ {[%clk 0:01:42]} 23. Qxf1 {[%clk 0:01:04]}  Rdd1 {[%clk 0:01:42]} 24. Nd2 {[%clk 0:01:02]}  Rxf1+ {[%clk 0:01:42]} 25. Nxf1 {[%clk 0:01:03]}  a5 {[%clk 0:01:37]} 26. a4 {[%clk 0:00:55]}  Ra1 {[%clk 0:01:37]} 27. g3 {[%clk 0:00:54]}  Rxa4 {[%clk 0:01:37]} 28. Nd2 {[%clk 0:00:54]}  Ra1+ {[%clk 0:01:37]} 29. Kg2 {[%clk 0:00:54]}  a4 {[%clk 0:01:38]} 30. Nc4 {[%clk 0:00:53]}  a3 {[%clk 0:01:37]} 31. Nxe5 {[%clk 0:00:47]}  a2 {[%clk 0:01:37]} 0-1


[Site "https://www.chess.com"]

[Event "Titled Tuesday Blitz February 21 Early 2023"]
[White "Martinez Alcantara, Jose Eduardo"]
[Black "Ozates, Tuna"]
[WhiteFideId "3805662"]
[BlackFideId "6354521"]
[WhiteElo "2619"]
[BlackElo "2251"]
[Result "1-0"]
[Round "02"]
[TimeControl "180+2"]
[Date "2023.02.21"]
[WhiteClock "0:02:12"]
[BlackClock "0:00:50"]

1. e4 {[%clk 0:03:00]}  c5 {[%clk 0:02:49]} 2. Nf3 {[%clk 0:03:00]}  Nc6 {[%clk 0:02:46]} 3. Bb5 {[%clk 0:02:59]}  g6 {[%clk 0:02:46]} 4. O-O {[%clk 0:02:58]}  Bg7 {[%clk 0:02:42]} 5. c3 {[%clk 0:02:57]}  Nf6 {[%clk 0:02:41]} 6. Re1 {[%clk 0:02:57]}  O-O {[%clk 0:02:40]} 7. d4 {[%clk 0:02:57]}  d5 {[%clk 0:02:41]} 8. e5 {[%clk 0:02:58]}  Ne4 {[%clk 0:02:38]} 9. Be3 {[%clk 0:02:57]}  cxd4 {[%clk 0:02:32]} 10. cxd4 {[%clk 0:02:57]}  Bf5 {[%clk 0:02:31]} 11. Nc3 {[%clk 0:02:54]}  Rc8 {[%clk 0:02:30]} 12. Rc1 {[%clk 0:02:49]}  Nxc3 {[%clk 0:02:29]} 13. bxc3 {[%clk 0:02:48]}  Na5 {[%clk 0:02:29]} 14. Bd3 {[%clk 0:02:47]}  Bxd3 {[%clk 0:02:29]} 15. Qxd3 {[%clk 0:02:47]}  Nc4 {[%clk 0:02:26]} 16. h4 {[%clk 0:02:47]}  h6 {[%clk 0:02:17]} 17. Bf4 {[%clk 0:02:44]}  e6 {[%clk 0:02:15]} 18. g3 {[%clk 0:02:39]}  Qa5 {[%clk 0:02:11]} 19. Re2 {[%clk 0:02:34]}  Rc6 {[%clk 0:02:08]} 20. Nh2 {[%clk 0:02:33]}  h5 {[%clk 0:01:54]} 21. g4 {[%clk 0:02:33]}  hxg4 {[%clk 0:01:55]} 22. Nxg4 {[%clk 0:02:33]}  Qd8 {[%clk 0:01:28]} 23. Bg5 {[%clk 0:02:33]}  Qa5 {[%clk 0:01:10]} 24. h5 {[%clk 0:02:32]}  Nxe5 {[%clk 0:01:01]} 25. Nxe5 {[%clk 0:02:24]}  Bxe5 {[%clk 0:00:55]} 26. Rxe5 {[%clk 0:02:25]}  Kg7 {[%clk 0:00:53]} 27. hxg6 {[%clk 0:02:14]}  f5 {[%clk 0:00:50]} 28. Qh3 {[%clk 0:02:12]} 1-0


[Site "https://www.chess.com"]